bitfinex/quotes_SOLUSD_20260217
["timestamp","ask_amount","ask_price","bid_price","bid_amount"]
[1771352446119,7.30726065,84.3,84.271,0.46380746]
[1771352447122,0.45957086,84.289,84.255,30.78861179]
[1771352447335,0.45957086,84.289,84.255,11.86861179]
[1771352447506,11.86198974,84.303,84.261,0.46380746]
[1771352447709,7.30726065,84.3,84.27,7.30726065]
[1771352448022,7.30726065,84.31,84.271,0.46380746]
[1771352448228,4.61729252,84.332,84.261,0.46380746]
[1771352448229,0.45957086,84.299,84.261,0.46380746]
[1771352448424,0.45957086,84.377,84.291,0.46380746]
[1771352448743,0.45957086,84.339,84.301,0.46380746]
[1771352448923,0.45957086,84.337,84.292,11.86352204]
[1771352449124,0.45957086,84.329,84.292,11.86352204]
[1771352449516,0.45957086,84.329,84.292,12.3273295]
[1771352449824,0.45957086,84.329,84.293,0.46380746]
[1771352450019,0.45957086,84.329,84.292,11.86352204]
[1771352450409,0.45957086,84.329,84.3,7.24842645]
[1771352451035,14.52,84.355,84.292,11.86352204]
[1771352451036,0.45957086,84.346,84.31,7.24842645]
[1771352451239,7.24842645,84.34,84.31,7.24842645]
[1771352451910,0.45957086,84.329,84.296,30.76282664]
[1771352452228,7.24842645,84.32,84.291,11.863552]
[1771352452422,7.24842645,84.33,84.3,7.24842645]
[1771352452627,7.24842645,84.33,84.292,0.46380746]
[1771352452628,0.4806951,84.329,84.292,0.46380746]
[1771352453033,7.24842645,84.32,84.291,11.863552]
[1771352453241,0.4806951,84.319,84.291,11.863552]
[1771352453436,7.24842645,84.31,84.28,7.24842645]
[1771352453650,0.4806951,84.309,84.272,0.45769199]
[1771352453814,7.24842645,84.29,84.263,11.86757179]
[1771352454013,0.4806951,84.299,84.263,11.86757179]
[1771352454231,41.50460107,84.328,84.28,7.24842645]
[1771352454232,0.4806951,84.318,84.28,7.24842645]
[1771352454430,41.50460107,84.328,84.281,0.45769199]
[1771352454431,7.24842645,84.32,84.281,0.45769199]
[1771352454733,7.72912155,84.32,84.281,0.45769199]
[1771352455031,7.72912155,84.32,84.283,0.45769199]
[1771352455217,0.4806951,84.318,84.282,11.86492964]
[1771352455531,0.4806951,84.309,84.282,11.86492964]
[1771352455710,0.4806951,84.309,84.27,7.24842645]
[1771352455911,0.4806951,84.309,84.274,11.86600332]
[1771352456718,41.50903117,84.319,84.264,11.86741533]
[1771352456719,0.4806951,84.299,84.264,11.86741533]
[1771352457230,11.86056717,84.313,84.28,7.24842645]
[1771352457411,7.72912155,84.3,84.264,11.86741533]
[1771352457611,7.72912155,84.3,84.265,0.45769199]
[1771352458021,41.5119851,84.313,84.264,11.86741533]
[1771352458022,7.24842645,84.31,84.271,0.45769199]
[1771352458419,7.24842645,84.31,84.28,7.24842645]
[1771352458620,29.64736563,84.325,84.281,0.45769199]
[1771352458621,7.24842645,84.32,84.281,0.45769199]
[1771352458928,7.24842645,84.32,84.264,11.86741533]
[1771352458929,0.4806951,84.329,84.291,0.45769199]
[1771352459144,11.86112989,84.309,84.281,0.45769199]
[1771352459433,11.86112989,84.309,84.281,12.32269266]
[1771352459611,11.86112989,84.309,84.281,0.45769199]
[1771352459813,7.24842645,84.31,84.281,0.45769199]
[1771352460013,19.10948816,84.31,84.282,11.86492964]
[1771352460212,19.10948816,84.31,84.281,0.45769199]
[1771352460213,19.59018326,84.31,84.281,0.45769199]
[1771352460815,7.72912155,84.32,84.283,0.45769199]
[1771352461041,0.4806951,84.33,84.301,0.45769199]
[1771352461216,0.4806951,84.33,84.302,11.86211477]
[1771352461617,12.3376059,84.339,84.303,0.45769199]
[1771352461824,0.4806951,84.349,84.32,7.24842645]
[1771352462026,0.4806951,84.349,84.311,0.45769199]
[1771352462233,0.4806951,84.369,84.331,0.45769199]
[1771352462519,0.4806951,84.359,84.322,0.45769199]
[1771352462825,0.4806951,84.359,84.33,7.24842645]
[1771352463027,0.4806951,84.369,84.34,7.24842645]
[1771352463239,7.24842645,84.36,84.33,7.24842645]
[1771352463415,0.4806951,84.368,84.331,0.45769199]
[1771352463612,7.24842645,84.35,84.322,11.85930124]
[1771352463816,7.24842645,84.35,84.321,11.85944189]
[1771352464016,0.4806951,84.339,84.313,30.72045796]
[1771352464420,7.24842645,84.35,84.313,30.72045796]
[1771352464736,7.72912155,84.35,84.32,7.24842645]
[1771352464915,7.72912155,84.35,84.314,0.45769199]
[1771352465112,7.24842645,84.35,84.321,0.45769199]
[1771352465315,19.10392355,84.35,84.321,12.31711234]
[1771352465540,0.4806951,84.358,84.321,12.31711234]
[1771352465746,7.24842645,84.35,84.321,12.31711234]
[1771352465932,7.24842645,84.35,84.32,7.24842645]
[1771352465933,0.4806951,84.369,84.317,0.45769199]
[1771352466118,0.4806951,84.399,84.361,0.45769199]
[1771352466321,0.4806951,84.407,84.38,7.24842645]
[1771352466516,0.4806951,84.399,84.36,7.24842645]
[1771352466819,0.4806951,84.379,84.34,7.01118645]
[1771352467022,0.4806951,84.379,84.341,0.45769199]
[1771352467219,0.4806951,84.405,84.351,0.45769199]
[1771352467458,0.4806951,84.387,84.35,7.24842645]
[1771352467740,11.84848161,84.399,84.361,0.45769199]
[1771352467945,11.84848161,84.399,84.328,88.93843087]
[1771352467946,0.4806951,84.389,84.35,7.24842645]
[1771352468127,0.4806951,84.381,84.35,7.24842645]
[1771352468439,7.72912155,84.38,84.35,7.24842645]
[1771352469014,0.4806951,84.38,84.341,0.45769199]
[1771352469240,0.4806951,84.38,84.35,7.24842645]
[1771352469634,0.4806951,84.378,84.34,7.24842645]
[1771352469840,0.4806951,84.369,84.331,11.85803559]
[1771352470017,0.4806951,84.369,84.296,1.1862959]
[1771352470018,0.4806951,84.359,84.321,0.45769199]
[1771352470343,0.4806951,84.359,84.32,19.10800899]
[1771352470344,7.24842645,84.34,84.314,11.86042549]
[1771352470923,7.24842645,84.33,84.303,11.86197406]
[1771352471333,0.4806951,84.329,84.3,7.24842645]
[1771352471525,7.24842645,84.33,84.293,11.86337357]
[1771352471526,0.4806951,84.327,84.293,11.86337357]
[1771352471720,0.4806951,84.327,84.3,7.24842645]
[1771352471921,11.85845745,84.328,84.3,7.24842645]
[1771352472116,0.4806951,84.348,84.301,0.45769199]
[1771352472331,0.4806951,84.348,84.311,0.45769199]
[1771352472642,0.4806951,84.329,84.293,11.86337357]
[1771352473227,0.4806951,84.329,84.3,7.24842645]
[1771352473441,0.4806951,84.329,84.294,0.45769199]
[1771352473732,0.4806951,84.329,84.279,18.84]
[1771352473733,0.4806951,84.345,84.31,7.70611844]
[1771352474045,0.4806951,84.369,84.331,0.45769199]
[1771352474538,7.24842645,84.36,84.331,0.45769199]
[1771352474742,7.24842645,84.35,84.32,7.24842645]
[1771352474932,0.45774835,84.349,84.32,7.24842645]
[1771352475137,0.45774835,84.387,84.331,0.48654862]
[1771352475443,7.24842645,84.37,84.331,0.48654862]
[1771352476047,11.85004595,84.388,84.351,0.48654862]
[1771352476247,0.45774835,84.387,84.351,0.48654862]
[1771352476545,7.7061748,84.37,84.333,0.48654862]
[1771352476748,7.7061748,84.37,84.34,7.24842645]
[1771352477245,0.45774835,84.37,84.34,7.24842645]
[1771352477452,41.47511112,84.388,84.341,0.48654862]
[1771352477642,0.45774835,84.389,84.35,7.24842645]
[1771352477945,14.46,84.406,84.34,0.48654862]
[1771352477946,0.45774835,84.377,84.34,19.59169071]
[1771352478139,0.45774835,84.369,84.334,11.85756737]
[1771352478450,0.45774835,84.369,84.331,0.48654862]
[1771352478649,11.85143046,84.378,84.313,18.8]
[1771352478650,7.24842645,84.35,84.32,7.24842645]
[1771352478829,7.24842645,84.35,84.292,1.1863522]
[1771352478830,0.45774835,84.369,84.34,7.24842645]
[1771352479028,0.45774835,84.377,84.34,7.24842645]
[1771352479336,7.24842645,84.37,84.339,0.48654862]
[1771352479535,7.7061748,84.37,84.339,0.48654862]
[1771352479731,0.45774835,84.369,84.33,7.24842645]
[1771352479933,11.85283519,84.368,84.33,7.24842645]
[1771352480147,11.85283519,84.368,84.325,11.85878278]
[1771352480148,7.24842645,84.36,84.326,0.48654862]
[1771352480328,7.24842645,84.36,84.33,7.73497507]
[1771352480836,7.24842645,84.36,84.33,0.48654862]
[1771352481036,0.45774835,84.369,84.331,0.48654862]
[1771352481249,11.85283519,84.368,84.331,0.48654862]
[1771352481441,0.45774835,84.369,84.331,0.48654862]
[1771352482048,0.45774835,84.388,84.341,0.48654862]
[1771352482239,0.45774835,84.379,84.35,7.24842645]
[1771352482431,0.45774835,84.379,84.341,0.48654862]
[1771352482857,0.45774835,84.386,84.35,7.24842645]
[1771352483051,7.24842645,84.38,84.35,7.24842645]
[1771352483263,0.45774835,84.397,84.361,0.48654862]
[1771352483489,0.45774835,84.379,84.34,7.24842645]
[1771352483767,7.7061748,84.37,84.339,0.48654862]
[1771352484335,7.7061748,84.37,84.34,11.85677021]
[1771352484536,7.7061748,84.37,84.34,41.49869574]
[1771352484732,7.7061748,84.37,84.34,11.85677021]
[1771352485536,7.24842645,84.4,84.34,11.85677021]
[1771352485537,7.24842645,84.39,84.35,7.24842645]
[1771352485739,7.24842645,84.39,84.36,7.24842645]
[1771352486250,0.45774835,84.392,84.361,0.48654862]
[1771352486474,7.24842645,84.39,84.362,11.85367819]
[1771352486952,0.45774835,84.389,84.352,0.48654862]
[1771352487259,0.45774835,84.389,84.36,7.24842645]
[1771352487634,7.24842645,84.38,84.352,0.48654862]
[1771352487935,11.84960481,84.391,84.35,7.24842645]
[1771352487936,0.45774835,84.379,84.35,7.24842645]
[1771352488140,0.45774835,84.389,84.351,0.48654862]
[1771352488345,0.45774835,84.379,84.341,0.48654862]
[1771352488635,0.45774835,84.359,84.33,7.24842645]
[1771352489235,0.45774835,84.359,84.323,41.50706212]
[1771352489679,0.45774835,84.359,84.33,7.24842645]
[1771352490133,0.45774835,84.359,84.324,0.48654862]
[1771352490535,12.31044306,84.369,84.34,7.24842645]
[1771352490764,11.85269471,84.369,84.34,7.24842645]
[1771352491248,11.85269471,84.369,84.331,11.85803559]
[1771352492149,0.45774835,84.368,84.34,7.24842645]
[1771352492755,11.85297568,84.367,84.34,7.24842645]
[1771352493256,0.45774835,84.381,84.341,0.48654862]
[1771352493448,19.09957601,84.38,84.35,7.73497507]
[1771352493654,19.09957601,84.38,84.35,0.48654862]
[1771352494045,19.55732436,84.38,84.351,11.855224]
[1771352494940,19.55732436,84.38,84.341,29.64133682]
[1771352494941,0.45774835,84.379,84.343,0.48654862]
[1771352495959,0.45774835,84.389,84.36,7.24842645]
[1771352496144,0.45774835,84.389,84.361,11.8538187]
[1771352496456,0.45774835,84.379,84.343,11.85634848]
[1771352496958,11.84999517,84.389,84.351,0.48654862]
[1771352497143,11.84999517,84.389,84.343,11.85634848]
[1771352497144,11.84999517,84.389,84.36,7.73497507]
[1771352497347,0.45774835,84.388,84.36,0.48654862]
[1771352497954,7.24842645,84.39,84.361,12.34036732]
[1771352498157,0.45774835,84.389,84.355,11.85455988]
[1771352499063,0.45774835,84.389,84.356,0.48654862]
[1771352499573,11.84903312,84.396,84.361,0.48654862]
[1771352499774,11.84876239,84.397,84.361,0.48654862]
[1771352500140,7.24842645,84.39,84.362,11.85367819]
[1771352500466,0.45774835,84.389,84.353,11.85494291]
[1771352500665,0.45774835,84.379,84.353,11.85494291]
[1771352500849,0.45774835,84.379,84.344,11.85620791]
[1771352501172,0.45774835,84.379,84.35,7.73497507]
[1771352502370,0.45774835,84.378,84.342,18.78]
[1771352502665,12.30917881,84.378,84.344,0.48654862]
[1771352502845,0.45774835,84.378,84.344,0.48654862]
[1771352505960,0.47538537,84.376,84.345,11.85606734]
[1771352506159,0.47538537,84.369,84.342,18.78]
[1771352506462,0.47538537,84.369,84.332,0.47189071]
[1771352507551,12.32822056,84.368,84.334,0.47189071]
[1771352507756,0.47538537,84.367,84.334,0.47189071]
[1771352507958,0.47538537,84.359,84.333,11.85775437]
[1771352508356,0.47538537,84.359,84.333,41.50214031]
[1771352508657,0.47538537,84.369,84.341,0.47189071]
[1771352509053,0.47538537,84.377,84.341,0.47189071]
[1771352509371,0.47538537,84.388,84.351,0.47189071]
[1771352509569,0.47538537,84.388,84.36,7.72031716]
[1771352509870,0.47538537,84.386,84.352,11.85508345]
[1771352510760,11.85016649,84.387,84.352,12.32697416]
[1771352510761,0.47538537,84.379,84.352,12.32697416]
[1771352510967,0.47538537,84.387,84.353,0.47189071]
[1771352511558,19.09823955,84.39,84.361,12.3256042]
[1771352511965,11.84916431,84.395,84.362,0.47189071]
[1771352512168,0.47538537,84.405,84.371,0.47189071]
[1771352512366,0.47538537,84.405,84.38,7.23735866]
[1771352513153,11.84706816,84.41,84.381,0.48943335]
[1771352513454,17.09924657,84.415,84.381,0.48943335]
[1771352513662,17.09924657,84.415,84.393,0.48943335]
[1771352514158,7.23735866,84.43,84.392,11.8494644]
[1771352514159,0.5,84.445,84.4,7.23735866]
[1771352514469,0.84,84.46,84.43,7.23735866]
[1771352514673,11.84022076,84.458,84.43,7.23735866]
[1771352514871,19.91739301,84.46,84.43,7.23735866]
[1771352515074,0.5,84.489,84.402,9.9781544]
[1771352515266,0.5,84.489,84.4,7.23735866]
[1771352515267,0.84,84.479,84.46,7.23735866]
[1771352515575,0.84,84.479,84.4,7.23735866]
[1771352515576,0.5,84.478,84.44,7.23735866]
[1771352515777,7.23735866,84.46,84.43,7.23735866]
[1771352516309,7.73735866,84.46,84.43,7.23735866]
[1771352516458,0.5,84.462,84.431,11.84399095]
[1771352517164,0.5,84.473,84.44,7.23735866]
[1771352517671,0.84,84.472,84.44,7.23735866]
[1771352517872,0.5,84.469,84.44,7.23735866]
[1771352518086,0.84,84.472,84.402,4.61729252]
[1771352518087,0.84,84.472,84.45,7.23735866]
[1771352518260,0.84,84.472,84.441,41.4490591]
[1771352518455,11.8383824,84.471,84.441,11.84258831]
[1771352518655,1.34,84.472,84.441,11.84258831]
[1771352518875,0.5,84.469,84.435,11.84342985]
[1771352519074,0.84,84.472,84.44,7.23735866]
[1771352519561,0.5,84.469,84.44,7.23735866]
[1771352519881,0.5,84.457,84.42,7.23735866]
[1771352520388,0.5,84.457,84.418,18.78]
[1771352520569,0.5,84.457,84.43,7.23735866]
[1771352521081,0.5,84.469,84.43,7.23735866]
[1771352521383,0.5,84.482,84.45,7.23735866]
[1771352521965,0.5,84.493,84.47,7.23735866]
[1771352522382,0.5,84.492,84.47,7.23735866]
[1771352522593,0.5,84.509,84.47,7.23735866]
[1771352522784,0.5,84.499,84.47,7.23735866]
[1771352523182,0.5,84.52,84.48,7.23735866]
[1771352523391,7.73735866,84.52,84.49,7.23735866]
[1771352523762,4.61729252,84.542,84.51,7.23735866]
[1771352523983,0.5,84.605,84.54,7.23735866]
[1771352524184,0.5,84.605,84.57,7.23735866]
[1771352524391,47.25602032,84.646,84.55,7.23735866]
[1771352524392,47.24453854,84.666,84.58,7.23735866]
[1771352524694,106.34652423,84.629,84.56,7.23735866]
[1771352524869,7.23735866,84.6,84.557,0.48943335]
[1771352525063,14.46,84.628,84.546,0.48943335]
[1771352525378,14.46,84.627,84.57,7.23735866]
[1771352525589,7.23735866,84.59,84.554,0.48943335]
[1771352525891,7.23735866,84.59,84.551,11.82718122]
[1771352526093,7.23735866,84.57,84.542,19.22943335]
[1771352526296,6.18125594,84.627,84.533,0.48943335]
[1771352526593,0.47444854,84.643,84.61,7.23735866]
[1771352526796,7.23735866,84.65,84.61,7.23735866]
[1771352526984,7.23735866,84.62,84.581,0.48943335]
[1771352527190,0.47444854,84.629,84.591,0.48943335]
[1771352527381,0.47444854,84.619,84.58,7.23735866]
[1771352527574,7.23735866,84.61,84.58,7.23735866]
[1771352527776,0.47444854,84.619,84.59,7.23735866]
[1771352527992,7.23735866,84.6,84.57,7.23735866]
[1771352528171,0.47444854,84.599,84.57,7.23735866]
[1771352528371,0.47444854,84.599,84.563,0.48943335]
[1771352528372,0.47444854,84.599,84.564,11.82536303]
[1771352529003,0.47444854,84.623,84.57,7.23735866]
[1771352529210,0.47444854,84.623,84.581,0.48943335]
[1771352529496,7.23735866,84.62,84.59,7.23735866]
[1771352529676,0.47444854,84.623,84.59,7.23735866]
[1771352529879,7.23735866,84.62,84.581,0.48943335]
[1771352530078,0.47444854,84.599,84.571,11.82438424]
[1771352530302,0.47444854,84.599,84.57,7.23735866]
[1771352530477,0.47444854,84.599,84.561,0.48943335]
[1771352530681,0.47444854,84.599,84.57,7.23735866]
[1771352530990,0.47444854,84.589,84.555,11.8265471]
[1771352531483,7.23735866,84.58,84.55,7.72679201]
[1771352531802,0.47444854,84.589,84.55,7.72679201]
[1771352532012,0.47444854,84.589,84.553,0.48943335]
[1771352532501,0.47444854,84.599,84.561,0.48943335]
[1771352533280,0.47444854,84.609,84.57,7.72679201]
[1771352533486,7.23735866,84.6,84.57,0.48943335]
[1771352533803,7.7118072,84.6,84.57,7.23735866]
[1771352533979,0.47444854,84.589,84.553,11.8268149]
[1771352534179,0.47444854,84.589,84.555,0.48943335]
[1771352534899,0.48689764,84.569,84.536,11.8291739]
[1771352535101,0.48689764,84.559,84.526,11.83061253]
[1771352535410,0.48689764,84.569,84.53,7.23735866]
[1771352535904,7.23735866,84.56,84.527,0.47921294]
[1771352536080,7.23735866,84.56,84.528,11.83039939]
[1771352536902,0.48689764,84.566,84.53,7.23735866]
[1771352537799,0.48689764,84.566,84.531,0.47921294]
[1771352537998,11.8252232,84.565,84.531,0.47921294]
[1771352538200,7.23735866,84.56,84.531,11.82997953]
[1771352538409,7.23735866,84.56,84.529,0.47921294]
[1771352538708,7.23735866,84.56,84.53,7.23735866]
[1771352538907,0.48689764,84.559,84.525,11.83080818]
[1771352539105,0.48689764,84.559,84.522,18.68]
[1771352539288,0.48689764,84.559,84.523,11.83109922]
[1771352539686,11.8252232,84.565,84.511,11.83277916]
[1771352539687,0.48689764,84.539,84.511,11.83277916]
[1771352539888,0.48689764,84.529,84.49,7.23735866]
[1771352540100,0.48689764,84.529,84.491,0.47921294]
[1771352540407,12.31729703,84.528,84.492,18.68]
[1771352540586,0.48689764,84.528,84.492,18.68]
[1771352540782,0.48689764,84.528,84.492,19.15921294]
[1771352540984,7.7242563,84.56,84.521,0.47921294]
[1771352541301,0.48689764,84.559,84.53,7.23735866]
[1771352541504,0.48689764,84.579,84.54,7.23735866]
[1771352541689,0.48689764,84.579,84.55,7.23735866]
[1771352542011,7.23735866,84.57,84.535,0.47921294]
[1771352542221,0.48689764,84.559,84.532,14.32]
[1771352542522,0.48689764,84.549,84.52,7.23735866]
[1771352542687,0.48689764,84.549,84.511,12.3119921]
[1771352543601,7.23735866,84.54,84.51,7.23735866]
[1771352543830,0.48689764,84.539,84.508,11.83319922]
[1771352544120,0.48689764,84.519,84.477,11.83754157]
[1771352544408,7.23735866,84.53,84.501,0.47921294]
[1771352544710,7.23735866,84.54,84.5,7.23735866]
[1771352544889,0.48689764,84.562,84.53,7.23735866]
[1771352545090,7.23735866,84.56,84.53,7.23735866]
[1771352545285,7.7242563,84.56,84.53,7.23735866]
[1771352545517,0.48689764,84.569,84.529,0.47921294]
[1771352545811,7.23735866,84.56,84.53,7.23735866]
[1771352546324,7.23735866,84.55,84.511,0.47921294]
[1771352546505,0.48689764,84.555,84.52,7.23735866]
[1771352546717,0.48689764,84.555,84.503,18.66]
[1771352546718,0.48689764,84.566,84.531,0.47921294]
[1771352546892,0.48689764,84.559,84.53,7.23735866]
[1771352547225,0.48689764,84.559,84.52,7.7165716]
[1771352547226,7.23735866,84.55,84.52,7.7165716]
[1771352547513,7.23735866,84.55,84.479,4.61729252]
[1771352547514,0.48689764,84.549,84.51,7.23735866]
[1771352547694,41.3882812,84.565,84.53,7.23735866]
[1771352547695,0.48689764,84.559,84.53,7.23735866]
[1771352548294,12.31296601,84.559,84.52,19.54809076]
[1771352548515,0.48689764,84.549,84.518,0.47921294]
[1771352548695,0.48689764,84.549,84.511,11.83277916]
[1771352548896,0.48689764,84.549,84.512,0.47921294]
[1771352549095,0.48689764,84.549,84.52,7.23735866]
[1771352549308,0.48689764,84.549,84.512,0.47921294]
[1771352550303,0.48689764,84.549,84.511,11.83277916]
[1771352550613,0.48689764,84.547,84.511,11.83277916]
[1771352550988,0.48689764,84.599,84.54,7.23735866]
[1771352551213,0.48689764,84.579,84.54,7.23735866]
[1771352551402,0.48689764,84.579,84.541,0.47921294]
[1771352551725,0.48689764,84.589,84.551,0.47921294]
[1771352551893,0.48689764,84.579,84.54,7.23735866]
[1771352552216,7.23735866,84.6,84.511,88.74584372]
[1771352552217,0.48689764,84.599,84.57,7.23735866]
[1771352552417,0.48689764,84.599,84.561,0.47921294]
[1771352552418,0.48689764,84.609,84.58,7.23735866]
[1771352552716,0.48689764,84.619,84.58,7.23735866]
[1771352552904,0.48689764,84.609,84.571,11.82438424]
[1771352553302,0.48689764,84.623,84.59,7.23735866]
[1771352553711,0.48689764,84.609,84.571,41.38534485]
[1771352554109,0.48689764,84.609,84.58,7.23735866]
[1771352554615,0.48689764,84.609,84.581,11.82298624]
[1771352554791,11.81921331,84.608,84.581,11.82298624]
[1771352555711,11.81921331,84.608,84.58,7.23735866]
[1771352556114,11.81921331,84.608,84.58,19.06039223]
[1771352556324,0.48689764,84.607,84.57,18.66]
[1771352556507,0.48689764,84.599,84.571,11.82438424]
[1771352556697,11.82061041,84.598,84.57,18.66]
[1771352556893,0.48689764,84.589,84.56,7.23735866]
[1771352557096,0.48689764,84.589,84.56,19.06317762]
[1771352557316,0.48689764,84.601,84.57,7.23735866]
[1771352557508,0.48689764,84.599,84.56,19.06317762]
[1771352557712,0.48689764,84.599,84.57,7.23735866]
[1771352558109,0.48689764,84.609,84.571,0.47921294]
[1771352558316,0.48689764,84.609,84.58,7.23735866]
[1771352558515,0.48689764,84.609,84.571,0.47921294]
[1771352558516,0.48689764,84.639,84.6,7.23735866]
[1771352558837,0.48689764,84.698,84.621,0.47921294]
[1771352559022,0.48689764,84.689,84.65,7.7165716]
[1771352559227,0.48689764,84.689,84.66,7.23735866]
[1771352559400,0.1,84.7,84.671,0.47921294]
[1771352559606,47.1810135,84.78,84.65,7.23735866]
[1771352559607,47.1810135,84.78,84.691,0.47921294]
[1771352559926,7.23735866,84.77,84.73,7.23735866]
[1771352560106,29.49025138,84.774,84.73,7.23735866]
[1771352560298,7.23735866,84.76,84.719,0.47921294]
[1771352560502,94.34989066,84.791,84.705,0.47921294]
[1771352560503,7.23735866,84.75,84.705,0.47921294]
[1771352560826,14.78,84.765,84.692,0.47921294]
[1771352561018,11.79967268,84.749,84.71,7.23735866]
[1771352561219,11.80013541,84.745,84.711,0.47921294]
[1771352561410,0.48689764,84.729,84.684,0.47921294]
[1771352561608,0.48689764,84.729,84.691,0.47921294]
[1771352561925,0.48689764,84.719,84.68,7.23735866]
[1771352562116,0.48689764,84.735,84.691,0.47921294]
[1771352562427,0.48689764,84.735,84.701,0.47921294]
[1771352562815,0.2555673,84.743,84.72,7.23735866]
[1771352563323,0.2555673,84.743,84.711,0.47921294]
[1771352563523,0.2555673,84.743,84.71,7.23735866]
[1771352563720,0.2555673,84.743,84.702,11.80609666]
[1771352563721,0.48689764,84.739,84.702,11.80609666]
[1771352563921,0.2555673,84.743,84.711,0.47921294]
[1771352564134,0.48689764,84.775,84.731,0.47921294]
[1771352564331,47.14773221,84.84,84.702,194.80059501]
[1771352564332,0.45727615,84.812,84.771,0.49007595]
[1771352564507,0.45727615,84.824,84.753,0.49007595]
[1771352564710,0.45727615,84.789,84.75,7.23735866]
[1771352565225,0.45727615,84.779,84.742,11.80052394]
[1771352565925,0.45727615,84.805,84.77,7.23735866]
[1771352566540,0.45727615,84.844,84.801,0.49007595]
[1771352566705,0.45727615,84.844,84.771,19.2]
[1771352566706,7.23735866,84.83,84.79,7.23735866]
[1771352567034,7.23735866,84.81,84.771,0.49007595]
[1771352567212,0.45727615,84.818,84.771,0.49007595]
[1771352567415,0.45727615,84.809,84.771,0.49007595]
[1771352567614,0.45727615,84.809,84.78,7.23735866]
[1771352567925,41.25266668,84.843,84.791,0.49007595]
[1771352567926,7.69463481,84.83,84.791,0.49007595]
[1771352568137,0.45727615,84.83,84.8,7.23735866]
[1771352568305,7.23735866,84.82,84.79,7.23735866]
[1771352568505,7.23735866,84.82,84.771,19.18]
[1771352568506,7.23735866,84.84,84.81,7.23735866]
[1771352568713,17.21724875,84.846,84.812,0.49007595]
[1771352569141,17.21724875,84.846,84.785,47.17766678]
[1771352569142,7.23735866,84.83,84.79,7.23735866]
[1771352569436,0.45727615,84.829,84.79,19.03120227]
[1771352570436,0.45727615,84.819,84.781,11.79506321]
[1771352571236,0.45727615,84.817,84.78,7.23735866]
[1771352571406,0.45727615,84.817,84.775,11.79584248]
[1771352571407,0.45727615,84.809,84.77,7.23735866]
[1771352571731,0.45727615,84.809,84.78,7.23735866]
[1771352571905,0.45727615,84.809,84.77,7.23735866]
[1771352572111,0.45727615,84.809,84.78,7.23735866]
[1771352572328,0.45727615,84.822,84.79,7.23735866]
[1771352572513,7.23735866,84.83,84.8,7.23735866]
[1771352572721,26.54783693,84.834,84.79,0.49007595]
[1771352573037,0.49679805,84.819,84.79,7.23735866]
[1771352573543,0.49679805,84.818,84.781,11.79509559]
[1771352573724,0.49679805,84.829,84.79,7.23735866]
[1771352573914,7.16420627,84.82,84.782,0.46279375]
[1771352574239,0.49679805,84.819,84.78,18.95933827]
[1771352574534,7.16420627,84.8,84.77,7.16420627]
[1771352574725,0.49679805,84.809,84.78,7.16420627]
[1771352574925,0.49679805,84.809,84.771,0.46279375]
[1771352575118,7.16420627,84.83,84.8,7.16420627]
[1771352575715,19.44936462,84.83,84.791,0.46279375]
[1771352575915,7.16420627,84.82,84.781,0.46279375]
[1771352576137,0.49679805,84.829,84.79,7.16420627]
[1771352576533,0.49679805,84.829,84.781,0.46279375]
[1771352576834,7.16420627,84.81,84.779,11.79537385]
[1771352577019,0.49679805,84.819,84.78,7.16420627]
[1771352577416,0.49679805,84.819,84.79,7.16420627]
[1771352577618,0.49679805,84.819,84.785,11.79440015]
[1771352577923,0.49679805,84.817,84.78,11.79515817]
[1771352578243,0.49679805,84.809,84.77,7.16420627]
[1771352578543,0.49679805,84.779,84.742,0.46279375]
[1771352578748,0.49679805,84.779,84.744,0.46279375]
[1771352579343,7.66100432,84.76,84.728,0.46279375]
[1771352579642,0.49679805,84.76,84.731,11.80205591]
[1771352579814,11.79815712,84.759,84.729,11.8023345]
[1771352580015,0.49679805,84.76,84.73,7.16420627]
[1771352580219,7.16420627,84.78,84.741,0.46279375]
[1771352580439,7.16420627,84.78,84.751,0.46279375]
[1771352580646,7.66100432,84.79,84.76,7.16420627]
[1771352580832,11.7931391,84.796,84.76,7.16420627]
[1771352581044,47.1559742,84.825,84.729,41.30817075]
[1771352581045,0.49679805,84.789,84.75,7.16420627]
[1771352581421,0.49679805,84.789,84.76,7.16420627]
[1771352581625,0.49679805,84.779,84.741,0.46279375]
[1771352581823,0.49679805,84.779,84.75,7.16420627]
[1771352582024,7.16420627,84.77,84.741,0.46279375]
[1771352582219,0.49679805,84.778,84.741,0.46279375]
[1771352582424,0.49679805,84.789,84.751,0.46279375]
[1771352582649,0.49679805,84.789,84.739,41.30329599]
[1771352582650,7.16420627,84.78,84.74,7.62700002]
[1771352582946,7.16420627,84.78,84.75,7.16420627]
[1771352583150,0.49679805,84.788,84.76,7.16420627]
[1771352583352,0.49679805,84.799,84.77,7.16420627]
[1771352584029,0.49679805,84.809,84.762,0.46279375]
[1771352584236,0.49679805,84.799,84.762,0.46279375]
[1771352584425,0.49679805,84.799,84.77,7.16420627]
[1771352584623,0.49679805,84.799,84.762,0.46279375]